Workbook

Sheet 16TH JAN 14 DEPOT
A1: EX DEPOT PRICE 16.1.14
D2: PRIME-GRADES | I2: OFF-GRADES
D3: 67-01/67BER01/67GER01 | E3: 67-11 | F3: 57GER01 | G3: 57GMR01 | H3: 67GER01F | I3: 67-03/67BER03/67GER03 | J3: 57GMR03
A5: MUMBAI /PANVEL | B5: CRDT. | C5: BASIC | D5: 75393 | E5: =D5+500 -> 75893 | F5: =D5+3000 -> 78393 | G5: =D5+1500 -> 76893 | H5: =D5+300 -> 75693 | I5: =D5-1000 -> 74393 | J5: =D5+500 -> 75893
C6: EX.DUTY 12.36% | D6: =SUM(D5*12.36%) -> 9318.5748 | E6: 9380.3748 | F6: 9689.3748 | G6: 9503.9748 | H6: 9355.6548 | I6: 9194.9748 | J6: 9380.3748
C7: TRADE DISC. | D7: 0 | E7: 0 | F7: 0 | G7: 0 | H7: 0 | I7: 0 | J7: 0
C8: EX-GODOWN | D8: =D5+D6 -> 84711.5748 | E8: 85273.3748 | F8: 88082.3748 | G8: 86396.9748 | H8: 85048.6548 | I8: 83587.9748 | J8: 85273.3748
B9: CASH | C9: CASH.DISC | D9: 700 | E9: =D9 -> 700 | F9: 700 | G9: 700 | H9: 700 | I9: 700 | J9: 700
C10: EX-GODOWN | D10: =D8-D9 -> 84011.5748 | E10: 84573.3748 | F10: 87382.3748 | G10: 85696.9748 | H10: 84348.6548 | I10: 82887.9748 | J10: 84573.3748
A12: Daman | B12: CRDT. | C12: BASIC | D12: =D5-65 -> 75328 | E12: =D12+500 -> 75828 | F12: =D12+3000 -> 78328 | G12: =D12+1500 -> 76828 | H12: =D12+300 -> 75628 | I12: =D12-1000 -> 74328 | J12: =D12+500 -> 75828
C13: EX.DUTY 12.36% | D13: =SUM(D12*12.36%) -> 9310.5408 | E13: 9372.3408 | F13: 9681.3408 | G13: 9495.9408 | H13: 9347.6208 | I13: 9186.9408 | J13: 9372.3408
C14: TRADE DISC. | D14: 0 | E14: 0 | F14: 0 | G14: 0 | H14: 0 | I14: 0 | J14: 0
C15: EX-GODOWN | D15: =D12+D13 -> 84638.5408 | E15: 85200.3408 | F15: 88009.3408 | G15: 86323.9408 | H15: 84975.6208 | I15: 83514.9408 | J15: 85200.3408
B16: CASH | C16: CASH.DISC | D16: =D9 -> 700 | E16: =E9 -> 700 | F16: 700 | G16: 700 | H16: 700 | I16: 700 | J16: 700
C17: EX-GODOWN | D17: =D15-D16 -> 83938.5408 | E17: 84500.3408 | F17: 87309.3408 | G17: 85623.9408 | H17: 84275.6208 | I17: 82814.9408 | J17: 84500.3408
A19: Jalgaon | B19: CRDT. | C19: BASIC | D19: =D5+101 -> 75494 | E19: =D19+500 -> 75994 | F19: =D19+3000 -> 78494 | G19: =D19+1500 -> 76994 | H19: =D19+300 -> 75794 | I19: =D19-1000 -> 74494 | J19: =D19+500 -> 75994
C20: EX.DUTY 12.36% | D20: =SUM(D19*12.36%) -> 9331.0584 | E20: 9392.8584 | F20: 9701.8584 | G20: 9516.4584 | H20: 9368.1384 | I20: 9207.4584 | J20: 9392.8584
C21: TRADE DISC. | D21: 0 | E21: 0 | F21: 0 | G21: 0 | H21: 0 | I21: 0 | J21: 0
C22: EX-GODOWN | D22: =D19+D20 -> 84825.0584 | E22: 85386.8584 | F22: 88195.8584 | G22: 86510.4584 | H22: 85162.1384 | I22: 83701.4584 | J22: 85386.8584
B23: CASH | C23: CASH.DISC | D23: =D9 -> 700 | E23: =E9 -> 700 | F23: 700 | G23: 700 | H23: 700 | I23: 700 | J23: 700
C24: EX-GODOWN | D24: =D22-D23 -> 84125.0584 | E24: 84686.8584 | F24: 87495.8584 | G24: 85810.4584 | H24: 84462.1384 | I24: 83001.4584 | J24: 84686.8584
A26: Pune | B26: CRDT. | C26: BASIC | D26: =D5+798 -> 76191 | E26: =D26+500 -> 76691 | F26: =D26+3000 -> 79191 | G26: =D26+1500 -> 77691 | H26: =D26+300 -> 76491 | I26: =D26-1000 -> 75191 | J26: =D26+500 -> 76691
C27: EX.DUTY 12.36% | D27: =SUM(D26*12.36%) -> 9417.2076 | E27: 9479.0076 | F27: 9788.0076 | G27: 9602.6076 | H27: 9454.2876 | I27: 9293.6076 | J27: 9479.0076
C28: TRADE DISC. | D28: 0 | E28: 0 | F28: 0 | G28: 0 | H28: 0 | I28: 0 | J28: 0
C29: EX-GODOWN | D29: =D26+D27 -> 85608.2076 | E29: 86170.0076 | F29: 88979.0076 | G29: 87293.6076 | H29: 85945.2876 | I29: 84484.6076 | J29: 86170.0076
B30: CASH | C30: CASH.DISC | D30: =D9 -> 700 | E30: =E9 -> 700 | F30: 700 | G30: 700 | H30: 700 | I30: 700 | J30: 700
C31: EX-GODOWN | D31: =D29-D30 -> 84908.2076 | E31: 85470.0076 | F31: 88279.0076 | G31: 86593.6076 | H31: 85245.2876 | I31: 83784.6076 | J31: 85470.0076
A33: Silvassa | B33: CRDT. | C33: BASIC | D33: =D5-23 -> 75370 | E33: =D33+500 -> 75870 | F33: =D33+3000 -> 78370 | G33: =D33+1500 -> 76870 | H33: =D33+300 -> 75670 | I33: =D33-1000 -> 74370 | J33: =D33+500 -> 75870
C34: EX.DUTY 12.36% | D34: =SUM(D33*12.36%) -> 9315.732 | E34: 9377.532 | F34: 9686.532 | G34: 9501.132 | H34: 9352.812 | I34: 9192.132 | J34: 9377.532
C35: TRADE DISC. | D35: 0 | E35: 0 | F35: 0 | G35: 0 | H35: 0 | I35: 0 | J35: 0
C36: EX-GODOWN | D36: =D33+D34 -> 84685.732 | E36: 85247.532 | F36: 88056.532 | G36: 86371.132 | H36: 85022.812 | I36: 83562.132 | J36: 85247.532
B37: CASH | C37: CASH.DISC | D37: =D9 -> 700 | E37: =E9 -> 700 | F37: 700 | G37: 700 | H37: 700 | I37: 700 | J37: 700
C38: EX-GODOWN | D38: =D36-D37 -> 83985.732 | E38: 84547.532 | F38: 87356.532 | G38: 85671.132 | H38: 84322.812 | I38: 82862.132 | J38: 84547.532
A40: Hyderabad | B40: CRDT. | C40: BASIC | D40: =D5+2152 -> 77545 | E40: =D40+500 -> 78045 | F40: =D40+3000 -> 80545 | G40: =D40+1500 -> 79045 | H40: =D40+300 -> 77845 | I40: =D40-1000 -> 76545 | J40: =D40+500 -> 78045
C41: EX.DUTY 12.36% | D41: =SUM(D40*12.36%) -> 9584.562 | E41: 9646.362 | F41: 9955.362 | G41: 9769.962 | H41: 9621.642 | I41: 9460.962 | J41: 9646.362
C42: TRADE DISC. | D42: 0 | E42: 0 | F42: 0 | G42: 0 | H42: 0 | I42: 0 | J42: 0
C43: EX-GODOWN | D43: =D40+D41 -> 87129.562 | E43: 87691.362 | F43: 90500.362 | G43: 88814.962 | H43: 87466.642 | I43: 86005.962 | J43: 87691.362
B44: CASH | C44: CASH.DISC | D44: =D9 -> 700 | E44: =E9 -> 700 | F44: 700 | G44: 700 | H44: 700 | I44: 700 | J44: 700
C45: EX-GODOWN | D45: =D43-D44 -> 86429.562 | E45: 86991.362 | F45: 89800.362 | G45: 88114.962 | H45: 86766.642 | I45: 85305.962 | J45: 86991.362
A47: Salem | B47: CRDT. | C47: BASIC | D47: =D5+825 -> 76218 | E47: =D47+2500 -> 78718 | F47: =D47+5000 -> 81218 | G47: =D47+3500 -> 79718 | H47: =D47+2300 -> 78518 | I47: =D47-1000 -> 75218 | J47: =D47+2500 -> 78718
C48: EX.DUTY 12.36% | D48: =SUM(D47*12.36%) -> 9420.5448 | E48: 9729.5448 | F48: 10038.5448 | G48: 9853.1448 | H48: 9704.8248 | I48: 9296.9448 | J48: 9729.5448
C49: TRADE DISC. | D49: =D9 -> 700 | E49: =E9 -> 700 | F49: 700 | G49: 700 | H49: 700 | I49: 700 | J49: 700
C50: EX-GODOWN | D50: =D47+D48 -> 85638.5448 | E50: 88447.5448 | F50: 91256.5448 | G50: 89571.1448 | H50: 88222.8248 | I50: 84514.9448 | J50: 88447.5448
B51: CASH | C51: CASH.DISC | D51: =D9 -> 700 | E51: =E9 -> 700 | F51: 700 | G51: 700 | H51: 700 | I51: 700 | J51: 700
C52: EX-GODOWN | D52: =D50-D51 -> 84938.5448 | E52: 87747.5448 | F52: 90556.5448 | G52: 88871.1448 | H52: 87522.8248 | I52: 83814.9448 | J52: 87747.5448
A54: Haridwar | B54: CRDT. | C54: BASIC | D54: =D5+2168 -> 77561 | E54: =D54+500 -> 78061 | F54: =D54+3000 -> 80561 | G54: =D54+1500 -> 79061 | H54: =D54+300 -> 77861 | I54: =D54-1000 -> 76561 | J54: =D54+500 -> 78061
C55: EX.DUTY 12.36% | D55: =SUM(D54*12.36%) -> 9586.5396 | E55: 9648.3396 | F55: 9957.3396 | G55: 9771.9396 | H55: 9623.6196 | I55: 9462.9396 | J55: 9648.3396
C56: TRADE DISC. | D56: 0 | E56: 0 | F56: 0 | G56: 0 | H56: 0 | I56: 0 | J56: 0
C57: EX-GODOWN | D57: =D54+D55 -> 87147.5396 | E57: 87709.3396 | F57: 90518.3396 | G57: 88832.9396 | H57: 87484.6196 | I57: 86023.9396 | J57: 87709.3396
B58: CASH | C58: CASH.DISC | D58: =D9 -> 700 | E58: =E9 -> 700 | F58: 700 | G58: 700 | H58: 700 | I58: 700 | J58: 700
C59: EX-GODOWN | D59: =D57-D58 -> 86447.5396 | E59: 87009.3396 | F59: 89818.3396 | G59: 88132.9396 | H59: 86784.6196 | I59: 85323.9396 | J59: 87009.3396
A61: JAIPUR | B61: CRDT. | C61: BASIC | D61: =D5+1128 -> 76521 | E61: =D61+500 -> 77021 | F61: =D61+3000 -> 79521 | G61: =D61+1500 -> 78021 | H61: =D61+300 -> 76821 | I61: =D61-1000 -> 75521 | J61: =D61+500 -> 77021
C62: EX.DUTY 12.36% | D62: =SUM(D61*12.36%) -> 9457.9956 | E62: 9519.7956 | F62: 9828.7956 | G62: 9643.3956 | H62: 9495.0756 | I62: 9334.3956 | J62: 9519.7956
C63: TRADE DISC. | D63: 0 | E63: 0 | F63: 0 | G63: 0 | H63: 0 | I63: 0 | J63: 0
C64: EX-GODOWN | D64: =D61+D62 -> 85978.9956 | E64: 86540.7956 | F64: 89349.7956 | G64: 87664.3956 | H64: 86316.0756 | I64: 84855.3956 | J64: 86540.7956
B65: CASH | C65: CASH.DISC | D65: =D16 -> 700 | E65: =E16 -> 700 | F65: 700 | G65: 700 | H65: 700 | I65: 700 | J65: 700
C66: EX-GODOWN | D66: =D64-D65 -> 85278.9956 | E66: 85840.7956 | F66: 88649.7956 | G66: 86964.3956 | H66: 85616.0756 | I66: 84155.3956 | J66: 85840.7956

Sheet 16TH JAN 14 PL
A1: EX WORKS PRICE 16.1.14
A2: EX-WORKS - HAZIRA / BARODA / GANDHAR location disc in MAHARASHTRA/AP/KRNTKA/KERLA/TN.
C3: CREDIT | J3: CASH
A4: GRADE | B4: NET | C4: LESS | D4: EXCISE | E4: CST | F4: LANDED | H4: NET | I4: LESS | J4: Less | K4: EXCISE | L4: CST | M4: LANDED
B5: BASIC | C5: LOC DISC | D5: 0.1236 | E5: 0.02 | F5: EX-PLANT | H5: BASIC | I5: LOC DISC | J5: Cach Disc | K5: 0.1236 | L5: =E5 -> 0.02 | M5: EX-PLANT
A6: 67-01/67BER01/67GER01 | B6: 74000 | C6: 700 | D6: =(B6-C6)*$D$11 -> 9059.88 | E6: =(B6-C6+D6)*$E$11 -> 1647.1976 | F6: =(B6-C6)+D6+E6 -> 84007.0776 | H6: =B6 -> 74000 | I6: =C6 -> 700 | J6: 700 | K6: =(H6-I6-J6)*$D$11 -> 8973.36 | L6: =(H6-I6-J6+K6)*$E$11 -> 1631.4672 | M6: =H6-I6-J6+K6+L6 -> 83204.8272
A7: 67-11 | B7: =B6+500 -> 74500 | C7: 700 | D7: 9121.68 | E7: 1658.4336 | F7: 84580.1136 | H7: 74500 | I7: 700 | J7: =J6 -> 700 | K7: =(H7-I7-J7)*$D$11 -> 9035.16 | L7: 1642.7032 | M7: 83777.8632
A8: 67-03/67BER03/67GER03 | B8: =B6-1000 -> 73000 | C8: 700 | D8: 8936.28 | E8: 1624.7256 | F8: 82861.0056 | H8: 73000 | I8: 700 | J8: =J6 -> 700 | K8: 8849.76 | L8: 1608.9952 | M8: 82058.7552
A10: 57GMR01 | B10: =B6+1500 -> 75500 | C10: 700 | D10: 9245.28 | E10: 1680.9056 | F10: 85726.1856 | H10: 75500 | I10: 700 | J10: =J6 -> 700 | K10: 9158.76 | L10: 1665.1752 | M10: 84923.9352
A11: 57GER01 | B11: =B6+3000 -> 77000 | C11: =C10 -> 700 | D11: 9430.68 | E11: 1714.6136 | F11: 87445.2936 | H11: 77000 | I11: 700 | J11: =J6 -> 700 | K11: 9344.16 | L11: 1698.8832 | M11: 86643.0432
A12: 57GMR03 | B12: =B6+500 -> 74500 | C12: 700 | D12: 9121.68 | E12: 1658.4336 | F12: 84580.1136 | H12: 74500 | I12: 700 | J12: =J6 -> 700 | K12: 9035.16 | L12: 1642.7032 | M12: 83777.8632
A13: 67GER01F | B13: =B6+300 -> 74300 | C13: 700 | D13: =(B13-C13)*$D$11 -> 9096.96 | E13: =(B13-C13+D13)*$E$11 -> 1653.9392 | F13: =(B13-C13)+D13+E13 -> 84350.8992 | H13: =H6+300 -> 74300 | I13: 700 | J13: =J6 -> 700 | K13: =(H13-I13-J13)*$D$11 -> 9010.44 | L13: =(H13-I13-J13+K13)*$E$11 -> 1638.2088 | M13: =H13-I13-J13+K13+L13 -> 83548.6488
A15: PLEASE NOTE THE FOLLOWING :
A16: 1) GRADE SPECIFIC DISC OF RS.1500/-MT FOR THE GRADES K 57GER01.
A17: 2) PLEASE NOTE ITS MANDATORY TO HAVE SERVICE TAX NO W.E.F 01.06.08 FOR DISPATCHES FROM RIL
A18: 3) CUSTOMERS HAVE TO SUBMIT ORIGINAL 'C' FORM IN ADVANCE AGAINST PURCHASES MADE FROM
A19: RELIANCE INDS. LTD. | C19: 3A) UNLOADING CHARGES TO BE BORNE BY CUSTOMER IN CASE OF EX WORK SALE.
A20: 4) SALES TAX / VAT AS APPLICABLE RATES WILL BE EXTRA FOR HAZIRA , GANDHAR & GODOWN SALES.
A21: 5) OCTROI & OTHER LOCAL LEVIES ARE TO BE BORNE BY THE CUSTOMER.
A22: 6) LOADING CHARGES AND TRANSPORTATION FOR EX.GODOWN SALES TO BE BORNE BY CUSTOMER.
A23: 7) INTEREST FREE CREDIT DAYS HAVE BEEN REDUCED FROM 14 TO 10 DAYS.
A25: QUANTITY DISCOUNT | I25: TRANSPORTATION WEF 1 JAN 2014
A26: QTY(MT) | B26: 0 < 27 | C26: 27 < 54 | D26: 54 <99 | E26: 99<198 | F26: 198 > | I26: DESTINATION | K26: BD | L26: Hazira | M26: Gandhar
B27: 0 | C27: 100 | D27: 200 | E27: 300 | F27: 400 | I27: ALWAR - JAIPUR | K27: 2113 | L27: 2358 | M27: 2193
I28: AHEMADNAGAR | K28: 1863 | L28: 1603 | M28: 1998
A29: REGIONAL DISCOUNT : RIL-Ex- WORKS - Hazira , Baroda , Gandhar as under. | I29: BHAMBORI | K29: 1443 | L29: 1073 | M29: 1403
B30: K6701 | C30: 67BER01 | D30: 67GER01 | I30: BARODA | K30: - | L30: - | M30: -
A31: Tamilnadu/Kerala | B31: 2000 | C31: 2000 | D31: 2000 | I31: BARSHI | K31: 2503 | L31: 2238 | M31: 2448
A32: Pondichery | B32: 2000 | C32: 2000 | D32: 2000 | I32: BHUJ | K32: 1263 | L32: 1253 | M32: 865
A33: Karnataka | B33: 1000 | C33: 1000 | D33: 1000 | I33: BOISAR | K33: 1278 | L33: 868 | M33: 1283
A34: Note: Above discounts would be applicable only on above pipe grades. | I34: DAMAN | K34: 763 | L34: 547 | M34: 798
B35: ( prime , nonprime n off grades ). | I35: DEHRADUN | K35: 2947 | L35: 3112 | M35: 3107
I36: GOA | K36: 2963 | L36: 2963 | M36: 2963
I37: GONDIA | K37: - | L37: 1945 | M37: 2163
A38: D.E. Prices for Ex Fact- Hazira , Baroda , Gandhar Complexes | I38: GARADHIA | K38: 423 | L38: 610 | M38: 505
A39: Location | B39: Type | C39: 67.01 | I39: HARIDWAR | K39: 2847 | L39: 3037 | M39: 2958
C40: 67GER01 | D40: 57GER01 | E40: 57GMR01 | F40: 67.11 | G40: 67GER01 F | I40: JALGAON | K40: 1461 | L40: 1106 | M40: 1411
A41: EX WORKS HZ , BC & GC. | B41: EOU-CT3/AIL | C41: =B6-5000 -> 69000 | D41: =B6-3500 -> 70500 | E41: =B6-3500 -> 70500 | F41: =B6-4500 -> 69500 | G41: =B6-4700 -> 69300 | I41: RAVER | K41: 1538 | L41: 1158 | M41: 1528
I42: JAMMU | K42: 3713 | L42: 3363 | M42: 3811
I43: MUMBAI | K43: 1443 | L43: 1133 | M43: 1453
I44: NALGONDA | K44: 2956 | L44: 2638 | M44: 2773
I45: NASHIK | K45: 1483 | L45: 1173 | M45: 1533
I46: NAGPUR | K46: 2213 | L46: 1852 | M46: 2102
I47: PHALTAN | K47: - | L47: 2213 | M47: -
I48: SANGLI | K48: 2273 | L48: 2253 | M48: 2503
I49: SATARA | K49: 2213 | L49: 2213 | M49: 2188
I50: SILVASSA | K50: 743 | L50: 589 | M50: 809
I51: SOLAPUR | K51: 2503 | L51: 2238 | M51: 2448
I52: TALASARI | K52: 1218 | L52: 695 | M52: 1223
I53: UMERGAON | K53: 746 | L53: 569 | M53: 701
I54: VASAI | K54: 1448 | L54: 963 | M54: 1508
I55: UDMALPET | K55: 4280 | L55: 4363 | M55: 4113
A61: WISHING YOU EVERY SUCCESS AT ALL TIME.
A62: Thanks & Regards,;
A63: Anil Mistry M-7738006668
A64: (Manager - Sales_
A65: e-mail: anil_mistry@vipl.com

Sheet 16.1.14
X2: www.vipl.com
A4: Tel: +91-22-26824334 / 26824345 / 46 / 47. Fax: +91-22-26823662 E mail : vipl@vipl.com; info@vipl.com
A5: PRICES FOR RELIANCE INDS LTD. REON PVC w.e.f. 16TH JANUARY - 2014 0600 AM : UW
A7: EX WORKS PRICE 16.1.14 | O7: EX DEPOT PRICE 16.1.14
A8: EX-WORKS - HAZIRA / BARODA / GANDHAR location disc in MAHARASHTRA/AP/KRNTKA/KERLA/TN. | R8: PRIME-GRADES | W8: OFF-GRADES
C9: CREDIT | J9: CASH | R9: 67-01/67BER01/67GER01 | S9: 67-11 | T9: 57GER01 | U9: 57GMR01 | V9: 67GER01F | W9: 67-03/67BER03/67GER03 | X9: 57GMR03
A10: GRADE | B10: NET | C10: LESS | D10: EXCISE | E10: CST | F10: LANDED | H10: NET | I10: LESS | J10: Less | K10: EXCISE | L10: CST | M10: LANDED
B11: BASIC | C11: LOC DISC | D11: 0.1236 | E11: 0.02 | F11: EX-PLANT | H11: BASIC | I11: LOC DISC | J11: Cach Disc | K11: 0.1236 | L11: =E11 -> 0.02 | M11: EX-PLANT | O11: MUMBAI /PANVEL | P11: CRDT. | Q11: BASIC | R11: 75393 | S11: =R11+500 -> 75893 | T11: =R11+3000 -> 78393 | U11: =R11+1500 -> 76893 | V11: =R11+300 -> 75693 | W11: =R11-1000 -> 74393 | X11: =R11+500 -> 75893
A12: 67-01/67BER01/67GER01 | B12: 74000 | C12: 700 | D12: =(B12-C12)*$D$11 -> 9059.88 | E12: =(B12-C12+D12)*$E$11 -> 1647.1976 | F12: =(B12-C12)+D12+E12 -> 84007.0776 | H12: =B12 -> 74000 | I12: =C12 -> 700 | J12: 700 | K12: =(H12-I12-J12)*$D$11 -> 8973.36 | L12: =(H12-I12-J12+K12)*$E$11 -> 1631.4672 | M12: =H12-I12-J12+K12+L12 -> 83204.8272 | Q12: EX.DUTY 12.36% | R12: =SUM(R11*12.36%) -> 9318.5748 | S12: 9380.3748 | T12: 9689.3748 | U12: 9503.9748 | V12: 9355.6548 | W12: 9194.9748 | X12: 9380.3748
A13: 67-11 | B13: =B12+500 -> 74500 | C13: 700 | D13: 9121.68 | E13: 1658.4336 | F13: 84580.1136 | H13: 74500 | I13: =C13 -> 700 | J13: =J12 -> 700 | K13: =(H13-I13-J13)*$D$11 -> 9035.16 | L13: 1642.7032 | M13: 83777.8632 | Q13: TRADE DISC. | R13: 0 | S13: 0 | T13: 0 | U13: 0 | V13: 0 | W13: 0 | X13: 0
A14: 67-03/67BER03/67GER03 | B14: =B12-1000 -> 73000 | C14: 700 | D14: 8936.28 | E14: 1624.7256 | F14: 82861.0056 | H14: 73000 | I14: 700 | J14: =J12 -> 700 | K14: 8849.76 | L14: 1608.9952 | M14: 82058.7552 | Q14: EX-GODOWN | R14: =R11+R12 -> 84711.5748 | S14: 85273.3748 | T14: 88082.3748 | U14: 86396.9748 | V14: 85048.6548 | W14: 83587.9748 | X14: 85273.3748
P15: CASH | Q15: CASH.DISC | R15: 700 | S15: =R15 -> 700 | T15: 700 | U15: 700 | V15: 700 | W15: 700 | X15: 700
A16: 57GMR01 | B16: =B12+1500 -> 75500 | C16: 700 | D16: 9245.28 | E16: 1680.9056 | F16: 85726.1856 | H16: 75500 | I16: 700 | J16: =J12 -> 700 | K16: 9158.76 | L16: 1665.1752 | M16: 84923.9352 | Q16: EX-GODOWN | R16: =R14-R15 -> 84011.5748 | S16: 84573.3748 | T16: 87382.3748 | U16: 85696.9748 | V16: 84348.6548 | W16: 82887.9748 | X16: 84573.3748
A17: 57GER01 | B17: =B12+3000 -> 77000 | C17: =C16 -> 700 | D17: 9430.68 | E17: 1714.6136 | F17: 87445.2936 | H17: 77000 | I17: 700 | J17: =J12 -> 700 | K17: 9344.16 | L17: 1698.8832 | M17: 86643.0432
A18: 57GMR03 | B18: =B12+500 -> 74500 | C18: 700 | D18: 9121.68 | E18: 1658.4336 | F18: 84580.1136 | H18: 74500 | I18: 700 | J18: =J12 -> 700 | K18: 9035.16 | L18: 1642.7032 | M18: 83777.8632 | O18: Daman | P18: CRDT. | Q18: BASIC | R18: =R11-65 -> 75328 | S18: =R18+500 -> 75828 | T18: =R18+3000 -> 78328 | U18: =R18+1500 -> 76828 | V18: =R18+300 -> 75628 | W18: =R18-1000 -> 74328 | X18: =R18+500 -> 75828
A19: 67GER01F | B19: =B12+300 -> 74300 | C19: 700 | D19: =(B19-C19)*$D$11 -> 9096.96 | E19: =(B19-C19+D19)*$E$11 -> 1653.9392 | F19: =(B19-C19)+D19+E19 -> 84350.8992 | H19: =H12+300 -> 74300 | I19: 700 | J19: =J12 -> 700 | K19: =(H19-I19-J19)*$D$11 -> 9010.44 | L19: =(H19-I19-J19+K19)*$E$11 -> 1638.2088 | M19: =H19-I19-J19+K19+L19 -> 83548.6488 | Q19: EX.DUTY 12.36% | R19: =SUM(R18*12.36%) -> 9310.5408 | S19: 9372.3408 | T19: 9681.3408 | U19: 9495.9408 | V19: 9347.6208 | W19: 9186.9408 | X19: 9372.3408
Q20: TRADE DISC. | R20: 0 | S20: 0 | T20: 0 | U20: 0 | V20: 0 | W20: 0 | X20: 0
A21: PLEASE NOTE THE FOLLOWING : | Q21: EX-GODOWN | R21: =R18+R19 -> 84638.5408 | S21: 85200.3408 | T21: 88009.3408 | U21: 86323.9408 | V21: 84975.6208 | W21: 83514.9408 | X21: 85200.3408
A22: 1) GRADE SPECIFIC DISC OF RS.1500/-MT FOR THE GRADES K 57GER01. | P22: CASH | Q22: CASH.DISC | R22: =R15 -> 700 | S22: =S15 -> 700 | T22: 700 | U22: 700 | V22: 700 | W22: 700 | X22: 700
A23: 2) PLEASE NOTE ITS MANDATORY TO HAVE SERVICE TAX NO W.E.F 01.06.08 FOR DISPATCHES FROM RIL | Q23: EX-GODOWN | R23: =R21-R22 -> 83938.5408 | S23: 84500.3408 | T23: 87309.3408 | U23: 85623.9408 | V23: 84275.6208 | W23: 82814.9408 | X23: 84500.3408
A24: 3) CUSTOMERS HAVE TO SUBMIT ORIGINAL 'C' FORM IN ADVANCE AGAINST PURCHASES MADE FROM
A25: RELIANCE INDS. LTD. | C25: 3A) UNLOADING CHARGES TO BE BORNE BY CUSTOMER IN CASE OF EX WORK SALE. | O25: Jalgaon | P25: CRDT. | Q25: BASIC | R25: =R11+101 -> 75494 | S25: =R25+500 -> 75994 | T25: =R25+3000 -> 78494 | U25: =R25+1500 -> 76994 | V25: =R25+300 -> 75794 | W25: =R25-1000 -> 74494 | X25: =R25+500 -> 75994
A26: 4) SALES TAX / VAT AS APPLICABLE RATES WILL BE EXTRA FOR HAZIRA , GANDHAR & GODOWN SALES. | Q26: EX.DUTY 12.36% | R26: =SUM(R25*12.36%) -> 9331.0584 | S26: 9392.8584 | T26: 9701.8584 | U26: 9516.4584 | V26: 9368.1384 | W26: 9207.4584 | X26: 9392.8584
A27: 5) OCTROI & OTHER LOCAL LEVIES ARE TO BE BORNE BY THE CUSTOMER. | Q27: TRADE DISC. | R27: 0 | S27: 0 | T27: 0 | U27: 0 | V27: 0 | W27: 0 | X27: 0
A28: 6) LOADING CHARGES AND TRANSPORTATION FOR EX.GODOWN SALES TO BE BORNE BY CUSTOMER. | Q28: EX-GODOWN | R28: =R25+R26 -> 84825.0584 | S28: 85386.8584 | T28: 88195.8584 | U28: 86510.4584 | V28: 85162.1384 | W28: 83701.4584 | X28: 85386.8584
A29: 7) INTEREST FREE CREDIT DAYS HAVE BEEN REDUCED FROM 14 TO 10 DAYS. | P29: CASH | Q29: CASH.DISC | R29: =R15 -> 700 | S29: =S15 -> 700 | T29: 700 | U29: 700 | V29: 700 | W29: 700 | X29: 700
Q30: EX-GODOWN | R30: =R28-R29 -> 84125.0584 | S30: 84686.8584 | T30: 87495.8584 | U30: 85810.4584 | V30: 84462.1384 | W30: 83001.4584 | X30: 84686.8584
A31: QUANTITY DISCOUNT | I31: TRANSPORTATION WEF 1 JAN 2014
A32: QTY(MT) | B32: 0 < 27 | C32: 27 < 54 | D32: 54 <99 | E32: 99<198 | F32: 198 > | I32: DESTINATION | K32: BD | L32: Hazira | M32: Gandhar | O32: Pune | P32: CRDT. | Q32: BASIC | R32: =R11+798 -> 76191 | S32: =R32+500 -> 76691 | T32: =R32+3000 -> 79191 | U32: =R32+1500 -> 77691 | V32: =R32+300 -> 76491 | W32: =R32-1000 -> 75191 | X32: =R32+500 -> 76691
B33: 0 | C33: 100 | D33: 200 | E33: 300 | F33: 400 | I33: ALWAR - JAIPUR | K33: 2113 | L33: 2358 | M33: 2193 | Q33: EX.DUTY 12.36% | R33: =SUM(R32*12.36%) -> 9417.2076 | S33: 9479.0076 | T33: 9788.0076 | U33: 9602.6076 | V33: 9454.2876 | W33: 9293.6076 | X33: 9479.0076
I34: AHEMADNAGAR | K34: 1863 | L34: 1603 | M34: 1998 | Q34: TRADE DISC. | R34: 0 | S34: 0 | T34: 0 | U34: 0 | V34: 0 | W34: 0 | X34: 0
A35: REGIONAL DISCOUNT : RIL-Ex- WORKS - Hazira , Baroda , Gandhar as under. | I35: BHAMBORI | K35: 1443 | L35: 1073 | M35: 1403 | Q35: EX-GODOWN | R35: =R32+R33 -> 85608.2076 | S35: 86170.0076 | T35: 88979.0076 | U35: 87293.6076 | V35: 85945.2876 | W35: 84484.6076 | X35: 86170.0076
B36: K6701 | C36: 67BER01 | D36: 67GER01 | I36: BARODA | K36: - | L36: - | M36: - | P36: CASH | Q36: CASH.DISC | R36: =R15 -> 700 | S36: =S15 -> 700 | T36: 700 | U36: 700 | V36: 700 | W36: 700 | X36: 700
A37: Tamilnadu/Kerala | B37: 2000 | C37: 2000 | D37: 2000 | I37: BARSHI | K37: 2503 | L37: 2238 | M37: 2448 | Q37: EX-GODOWN | R37: =R35-R36 -> 84908.2076 | S37: 85470.0076 | T37: 88279.0076 | U37: 86593.6076 | V37: 85245.2876 | W37: 83784.6076 | X37: 85470.0076
A38: Pondichery | B38: 2000 | C38: 2000 | D38: 2000 | I38: BHUJ | K38: 1263 | L38: 1253 | M38: 865
A39: Karnataka | B39: 1000 | C39: 1000 | D39: 1000 | I39: BOISAR | K39: 1278 | L39: 868 | M39: 1283 | O39: Silvassa | P39: CRDT. | Q39: BASIC | R39: =R11-23 -> 75370 | S39: =R39+500 -> 75870 | T39: =R39+3000 -> 78370 | U39: =R39+1500 -> 76870 | V39: =R39+300 -> 75670 | W39: =R39-1000 -> 74370 | X39: =R39+500 -> 75870
A40: Note: Above discounts would be applicable only on above pipe grades. | I40: DAMAN | K40: 763 | L40: 547 | M40: 798 | Q40: EX.DUTY 12.36% | R40: =SUM(R39*12.36%) -> 9315.732 | S40: 9377.532 | T40: 9686.532 | U40: 9501.132 | V40: 9352.812 | W40: 9192.132 | X40: 9377.532
B41: ( prime , nonprime n off grades ). | I41: DEHRADUN | K41: 2947 | L41: 3112 | M41: 3107 | Q41: TRADE DISC. | R41: 0 | S41: 0 | T41: 0 | U41: 0 | V41: 0 | W41: 0 | X41: 0
I42: GOA | K42: 2963 | L42: 2963 | M42: 2963 | Q42: EX-GODOWN | R42: =R39+R40 -> 84685.732 | S42: 85247.532 | T42: 88056.532 | U42: 86371.132 | V42: 85022.812 | W42: 83562.132 | X42: 85247.532
I43: GONDIA | K43: - | L43: 1945 | M43: 2163 | P43: CASH | Q43: CASH.DISC | R43: =R15 -> 700 | S43: =S15 -> 700 | T43: 700 | U43: 700 | V43: 700 | W43: 700 | X43: 700
A44: D.E. Prices for Ex Fact- Hazira , Baroda , Gandhar Complexes | I44: GARADHIA | K44: 423 | L44: 610 | M44: 505 | Q44: EX-GODOWN | R44: =R42-R43 -> 83985.732 | S44: 84547.532 | T44: 87356.532 | U44: 85671.132 | V44: 84322.812 | W44: 82862.132 | X44: 84547.532
A45: Location | B45: Type | C45: 67.01 | I45: HARIDWAR | K45: 2847 | L45: 3037 | M45: 2958
C46: 67GER01 | D46: 57GER01 | E46: 57GMR01 | F46: 67.11 | G46: 67GER01 F | I46: JALGAON | K46: 1461 | L46: 1106 | M46: 1411 | O46: Hyderabad | P46: CRDT. | Q46: BASIC | R46: =R11+2152 -> 77545 | S46: =R46+500 -> 78045 | T46: =R46+3000 -> 80545 | U46: =R46+1500 -> 79045 | V46: =R46+300 -> 77845 | W46: =R46-1000 -> 76545 | X46: =R46+500 -> 78045
A47: EX WORKS HZ , BC & GC. | B47: EOU-CT3/AIL | C47: =B12-5000 -> 69000 | D47: =B12-3500 -> 70500 | E47: =B12-3500 -> 70500 | F47: =B12-4500 -> 69500 | G47: =B12-4700 -> 69300 | I47: RAVER | K47: 1538 | L47: 1158 | M47: 1528 | Q47: EX.DUTY 12.36% | R47: =SUM(R46*12.36%) -> 9584.562 | S47: 9646.362 | T47: 9955.362 | U47: 9769.962 | V47: 9621.642 | W47: 9460.962 | X47: 9646.362
I48: JAMMU | K48: 3713 | L48: 3363 | M48: 3811 | Q48: TRADE DISC. | R48: 0 | S48: 0 | T48: 0 | U48: 0 | V48: 0 | W48: 0 | X48: 0
I49: MUMBAI | K49: 1443 | L49: 1133 | M49: 1453 | Q49: EX-GODOWN | R49: =R46+R47 -> 87129.562 | S49: 87691.362 | T49: 90500.362 | U49: 88814.962 | V49: 87466.642 | W49: 86005.962 | X49: 87691.362
I50: NALGONDA | K50: 2956 | L50: 2638 | M50: 2773 | P50: CASH | Q50: CASH.DISC | R50: =R15 -> 700 | S50: =S15 -> 700 | T50: 700 | U50: 700 | V50: 700 | W50: 700 | X50: 700
I51: NASHIK | K51: 1483 | L51: 1173 | M51: 1533 | Q51: EX-GODOWN | R51: =R49-R50 -> 86429.562 | S51: 86991.362 | T51: 89800.362 | U51: 88114.962 | V51: 86766.642 | W51: 85305.962 | X51: 86991.362
I52: NAGPUR | K52: 2213 | L52: 1852 | M52: 2102
I53: PHALTAN | K53: - | L53: 2213 | M53: - | O53: Salem | P53: CRDT. | Q53: BASIC | R53: =R11+825 -> 76218 | S53: =R53+2500 -> 78718 | T53: =R53+5000 -> 81218 | U53: =R53+3500 -> 79718 | V53: =R53+2300 -> 78518 | W53: =R53-1000 -> 75218 | X53: =R53+2500 -> 78718
I54: SANGLI | K54: 2273 | L54: 2253 | M54: 2503 | Q54: EX.DUTY 12.36% | R54: =SUM(R53*12.36%) -> 9420.5448 | S54: 9729.5448 | T54: 10038.5448 | U54: 9853.1448 | V54: 9704.8248 | W54: 9296.9448 | X54: 9729.5448
I55: SATARA | K55: 2213 | L55: 2213 | M55: 2188 | Q55: TRADE DISC. | R55: =R15 -> 700 | S55: =S15 -> 700 | T55: 700 | U55: 700 | V55: 700 | W55: 700 | X55: 700
I56: SILVASSA | K56: 743 | L56: 589 | M56: 809 | Q56: EX-GODOWN | R56: =R53+R54 -> 85638.5448 | S56: 88447.5448 | T56: 91256.5448 | U56: 89571.1448 | V56: 88222.8248 | W56: 84514.9448 | X56: 88447.5448
I57: SOLAPUR | K57: 2503 | L57: 2238 | M57: 2448 | P57: CASH | Q57: CASH.DISC | R57: =R15 -> 700 | S57: =S15 -> 700 | T57: 700 | U57: 700 | V57: 700 | W57: 700 | X57: 700
I58: TALASARI | K58: 1218 | L58: 695 | M58: 1223 | Q58: EX-GODOWN | R58: =R56-R57 -> 84938.5448 | S58: 87747.5448 | T58: 90556.5448 | U58: 88871.1448 | V58: 87522.8248 | W58: 83814.9448 | X58: 87747.5448
I59: UMERGAON | K59: 746 | L59: 569 | M59: 701
I60: VASAI | K60: 1448 | L60: 963 | M60: 1508 | O60: Haridwar | P60: CRDT. | Q60: BASIC | R60: =R11+2168 -> 77561 | S60: =R60+500 -> 78061 | T60: =R60+3000 -> 80561 | U60: =R60+1500 -> 79061 | V60: =R60+300 -> 77861 | W60: =R60-1000 -> 76561 | X60: =R60+500 -> 78061
I61: UDMALPET | K61: 4280 | L61: 4363 | M61: 4113 | Q61: EX.DUTY 12.36% | R61: =SUM(R60*12.36%) -> 9586.5396 | S61: 9648.3396 | T61: 9957.3396 | U61: 9771.9396 | V61: 9623.6196 | W61: 9462.9396 | X61: 9648.3396
Q62: TRADE DISC. | R62: 0 | S62: 0 | T62: 0 | U62: 0 | V62: 0 | W62: 0 | X62: 0
Q63: EX-GODOWN | R63: =R60+R61 -> 87147.5396 | S63: 87709.3396 | T63: 90518.3396 | U63: 88832.9396 | V63: 87484.6196 | W63: 86023.9396 | X63: 87709.3396
P64: CASH | Q64: CASH.DISC | R64: =R15 -> 700 | S64: =S15 -> 700 | T64: 700 | U64: 700 | V64: 700 | W64: 700 | X64: 700
Q65: EX-GODOWN | R65: =R63-R64 -> 86447.5396 | S65: 87009.3396 | T65: 89818.3396 | U65: 88132.9396 | V65: 86784.6196 | W65: 85323.9396 | X65: 87009.3396
A67: WISHING YOU EVERY SUCCESS AT ALL TIME. | O67: JAIPUR | P67: CRDT. | Q67: BASIC | R67: =R11+1128 -> 76521 | S67: =R67+500 -> 77021 | T67: =R67+3000 -> 79521 | U67: =R67+1500 -> 78021 | V67: =R67+300 -> 76821 | W67: =R67-1000 -> 75521 | X67: =R67+500 -> 77021
A68: Thanks & Regards,; | Q68: EX.DUTY 12.36% | R68: =SUM(R67*12.36%) -> 9457.9956 | S68: 9519.7956 | T68: 9828.7956 | U68: 9643.3956 | V68: 9495.0756 | W68: 9334.3956 | X68: 9519.7956
A69: Anil Mistry M-7738006668 | Q69: TRADE DISC. | R69: 0 | S69: 0 | T69: 0 | U69: 0 | V69: 0 | W69: 0 | X69: 0
A70: (Manager - Sales_ | Q70: EX-GODOWN | R70: =R67+R68 -> 85978.9956 | S70: 86540.7956 | T70: 89349.7956 | U70: 87664.3956 | V70: 86316.0756 | W70: 84855.3956 | X70: 86540.7956
A71: e-mail: anil_mistry@vipl.com | P71: CASH | Q71: CASH.DISC | R71: =R22 -> 700 | S71: =S22 -> 700 | T71: 700 | U71: 700 | V71: 700 | W71: 700 | X71: 700
Q72: EX-GODOWN | R72: =R70-R71 -> 85278.9956 | S72: 85840.7956 | T72: 88649.7956 | U72: 86964.3956 | V72: 85616.0756 | W72: 84155.3956 | X72: 85840.7956
